Cogmind - Beta 11 X8 @@@ ROGUE MODE // 2021.10.22 @ 22:47:46 Player: Runia Result: Destroyed by G-47 Trooper with Particle Gun Performance ------------- Evolutions (0) 0 Regions Visited (1) 200 Robots Destroyed (19) 95 Value Destroyed (470) 470 Prototype IDs (0) 0 Alien Tech Used (0) 0 Bonus (0) 0 TOTAL SCORE: 765 Bonus ------- None Cogmind --------- Core Integrity 0/250 Matter 150/300 Energy 160/160 System Corruption 0% Temperature Warm (174) Movement Treading (160) Location -10/Materials Parts ------- > --- POWER (1) -------- Light Nuclear Core > --- PROPULSION (2) --- Light Treads Light Treads > --- UTILITY (2) ------ Medium Storage Unit Large Storage Unit > --- WEAPON (2) ------- Medium Laser Assault Rifle > --- INVENTORY (15) --- Aluminum Leg Aluminum Leg Medium Laser Assault Rifle Grenade Launcher Mini Grenade Launcher Mini Grenade Launcher Plasma Cutter Plasma Cutter Peak State ------------ > --- POWER ------------ Light Nuclear Core > --- PROPULSION ------- Light Treads Light Treads > --- UTILITY ---------- Medium Storage Unit Large Storage Unit > --- WEAPON ----------- Medium Laser Assault Rifle > --- INVENTORY -------- Aluminum Leg Grenade Launcher Mini Grenade Launcher Mini Grenade Launcher Plasma Cutter Plasma Cutter [Rating: 10] Favorites ----------- Power Light Ion Engine Engine Light Ion Engine Power Core Light Nuclear Core Propulsion Aluminum Leg Treads Light Treads Leg Aluminum Leg Utility Small Storage Unit Storage Small Storage Unit Weapon Assault Rifle Energy Gun Medium Laser Ballistic Gun Assault Rifle Launcher Mini Grenade Launcher Build | -11 -10 ------- Run | Scr Mat Slots Evolved . | . . Power . | . . Propulsion . | . . Utility . | . . Weapon . | . . Parts Attached 16 | . 16 Power 2 | . 2 Engine 1 | . 1 Core 1 | . 1 Reactor . | . . Propulsion 5 | . 5 Treads 2 | . 2 Leg 3 | . 3 Wheel . | . . Hover . | . . Flight . | . . Utility 2 | . 2 Device . | . . Storage 2 | . 2 Processor . | . . Hackware . | . . Protection . | . . Artifact . | . . Weapon 7 | . 7 Energy Gun 2 | . 2 Energy Cannon . | . . Ballistic Gun 3 | . 3 Ballistic Cannon . | . . Launcher 2 | . 2 Special Weapon . | . . Impact Weapon . | . . Slashing Weapon . | . . Piercing Weapon . | . . Special Melee Weapon . | . . Unidentified Prototypes . | . . Parts Lost 2 | . 2 Power 1 | . 1 Propulsion . | . . Utility . | . . Weapon 1 | . 1 Highest Loss Streak 2 | . 2 Average Slot Usage (%) 87 | . 87 Engine 10 | . 10 Core 2 | . 2 Treads 7 | . 7 Leg 20 | . 20 Storage 17 | . 17 Energy Gun 12 | . 12 Ballistic Gun 14 | . 14 Naked Turns . | . . Heaviest Build 39 | 12 39 Greatest Support 40 | 20 40 Greatest Overweight (x) . | . . Average Overweight (x) . | . . Largest Inventory Capacity 15 | 8 15 Average Capacity 10 | 8 10 Most Carried 9 | 5 9 Average Carried 7 | 5 7 Final Capacity 15 | 8 15 Final Carried 9 | 4 9 Class Distribution -------------------- 100% | Mutant Dominant Class ---------------- Mutant | -10/Materials Resources | -11 -10 ----------- Run | Scr Mat Matter Collected 466 | 197 269 Remotely . | . . Salvage Created 567 | . 567 Parts 33 | . 33 Haulers Intercepted 1 | . 1 Recyclers Shooed 1 | . 1 Parts Field Recycled . | . . Retrieved Matter . | . . Parts Self-Destructed . | . . Prevented . | . . Kills | -11 -10 ------- Run | Scr Mat Combat Hostiles Destroyed 12 | . 12 Guns 9 | . 9 AOE 3 | . 3 Classes Destroyed 6 | . 6 Worker 2 | . 2 Builder 2 | . 2 Hauler 1 | . 1 Recycler 1 | . 1 Watcher 1 | . 1 Grunt 12 | . 12 Best Kill Streak 7 | . 7 Combat Bots Only 3 | . 3 Max Kills in Single Turn 2 | . 2 Gunslinging . | . . Exploded 1 | . 1 Melee . | . . Uniques/NPCs Destroyed . | . . Combat | -11 -10 -------- Run | Scr Mat Damage Taken 818 | . 818 Core 264 | . 264 Absorbed by Shields . | . . Core Remaining (%) 100 | 100 . Volleys Fired 58 | . 58 Largest 2 | . 2 Hottest 70 | . 70 Shots Fired 105 | . 105 Gun 97 | . 97 Cannon . | . . Launcher 8 | . 8 Special . | . . Kinetic 62 | . 62 Thermal 35 | . 35 Explosive 8 | . 8 Electromagnetic . | . . Robot Hit Streak 8 | . 8 Robot Miss Streak 6 | . 6 Penetration Max . | . . Secondary Targets 1 | . 1 Max Gunslinging Chain 1 | . 1 Shots Hit Robots 60 | . 60 Core Hits 38 | . 38 Critical Kills . | . . Critical Parts Destroyed . | . . Critical Strikes 2 | . 2 Burn 2 | . 2 Melee Attacks . | . . Impact . | . . Slashing . | . . Piercing . | . . Sneak Attacks . | . . Combat Hostiles . | . . Follow-up Attacks . | . . Damage Inflicted 1324 | . 1324 Guns 716 | . 716 Cannons . | . . Explosions 608 | . 608 Melee . | . . Ramming . | . . Kinetic 491 | . 491 Thermal 225 | . 225 Explosive 608 | . 608 Electromagnetic . | . . Impact . | . . Slashing . | . . Piercing . | . . Highest Corruption . | . . Average Corruption . | . . Corruption Purged . | . . Overload Shots . | . . Overflow Damage . | . . Projectiles . | . . Explosions . | . . Melee . | . . Knockbacks . | . . Impact . | . . Kinetic . | . . Secondary . | . . Self-Inflicted Damage 70 | . 70 Shots 2 | . 2 Rammed . | . . Targets Rammed . | . . Kicked . | . . Crushed . | . . Highest Temperature 165 | . 165 Average Temperature 36 | . 36 Received Heat Transfer 426 | . 426 Siege Activations . | . . Robots Corrupted . | . . Combat Hostiles . | . . Parts Fried . | . . Impact Corruptions . | . . Robots Melted . | . . Combat Hostiles . | . . Parts Melted 1 | . 1 Heat Transferred 814 | . 814 Parts Sabotaged . | . . Parts Stolen . | . . Parts Stripped . | . . Power Chain Reactions . | . . Missiles Intercepted . | . . Alert | -11 -10 ------- Run | Scr Mat Peak Influence 334 | . 334 Initial . | . . Average 167 | . 167 Maximum Alert Level 1 | . 1 Low Security (%) 56 | 100 56 Level 1 43 | . 43 Level 2 . | . . Level 3 . | . . Level 4 . | . . Level 5 . | . . High Security . | . . Max Security . | . . Squads Dispatched 4 | . 4 Investigation 3 | . 3 Extermination . | . . Reinforcement 1 | . 1 Assault . | . . Garrison . | . . Intercept . | . . Construction Impeded . | . . Haulers Reinforced . | . . Active Scanning Responses . | . . Cargo Convoy Interrupts . | . . Stealth | -11 -10 --------- Run | Scr Mat Distress Signals 1 | . 1 Communications Jammed . | . . Distress Signals . | . . Times Spotted 20 | . 20 Peak Tracking Total 4 | . 4 Tactical Retreats 2 | . 2 Traps | -11 -10 ------- Run | Scr Mat Traps Triggered 2 | . 2 Indirectly . | . . Trap Hack Attempts . | . . Triggered . | . . Disarmed . | . . Reprogrammed . | . . Reused . | . . Traps Extracted . | . . Installed . | . . Triggered . | . . Machines | -11 -10 ---------- Run | Scr Mat Machines Disabled . | . . Max in Single Turn . | . . Machines Sabotaged . | . . Garrisons Compromised . | . . Overloaded Fab Kills . | . . Hacking | -11 -10 --------- Run | Scr Mat Machines Accessed 2 | . 2 Terminals 1 | . 1 Fabricators . | . . Repair Stations . | . . Recycling Units 1 | . 1 Scanalyzers . | . . Garrison Access . | . . Total Hacks 3 | . 3 Successful 1 | . 1 Failed 2 | . 2 Catastrophic . | . . Database Lockouts . | . . Manual 1 | . 1 Terminals 2 | . 2 Fabricators . | . . Repair Stations . | . . Recycling Units 1 | . 1 Scanalyzers . | . . Garrison Access . | . . Terminal Hacks . | . . Fabricator Hacks . | . . Repair Station Hacks . | . . Recycling Unit Hacks . | . . Scanalyzer . | . . Garrison Access Hacks . | . . Unauthorized Hacks 1 | . 1 Terminals . | . . Fabricators . | . . Repair Stations . | . . Recycling Units 1 | . 1 Tunnel 1 | . 1 Scanalyzers . | . . Garrison Access . | . . Data Cores Recovered . | . . Used . | . . Hacking Detections 1 | . 1 Full Trace Events 1 | . 1 Feedback Events . | . . Feedback Blocked . | . . Robot Schematics Acquired . | . . Robots Built . | . . Authchips . | . . Time . | . . Total Robot Build Rating . | . . Part Schematics Acquired . | . . Parts Built . | . . Authchips . | . . Time . | . . Total Part Build Rating . | . . Parts Repaired . | . . Time . | . . Parts Recycled . | . . Recycled Matter . | . . Retrieved Matter . | . . Retrieved Components . | . . Parts Scanalyzed . | . . Part Schematics Acquired . | . . Parts Damaged . | . . Bothacking | -11 -10 ------------ Run | Scr Mat Used RIF Installer . | . . Robots Hacked . | . . Non-combat . | . . Combat . | . . Robot Hacks Applied . | . . Relay Couplers Released . | . . Robots Rewired . | . . Allies Hacked . | . . Hacks Repelled . | . . Allies | -11 -10 -------- Run | Scr Mat Total Allies . | . . Largest Group . | . . Highest-Rated Group . | . . Highest-Rated Ally . | . . Total Orders . | . . Ally Attacks . | . . Total Damage . | . . Kills . | . . Allies Corrupted . | . . Allies Melted . | . . Intel | -11 -10 ------- Run | Scr Mat Robot Analysis Total . | . . Derelict Logs Recovered . | . . Drone Launches . | . . Drone Recoveries . | . . Exploration | -11 -10 ------------- Run | Scr Mat Turns Passed 557 | 1 556 Spaces Moved 282 | 1 281 Core . | . . Treads 32 | . 32 Legs 250 | 1 249 Wheels . | . . Hover . | . . Flight . | . . Fastest Speed 120 | 120 120 Average Speed 124 | 120 124 Slowest Speed 160 | 120 160 Overloaded Moves . | . . Propulsion Burnouts . | . . Robots Hopped . | . . Cave-ins Triggered . | . . Exploration Rate (%) 29 | 2 57 Regions Visited 1 Branch Regions . Pre-discovered Areas 1 | . 1 Known Exits Taken . | . . Unknown Exits Taken 1 | 1 . Scrap Searched . | . . Spaces Dug . | . . Terrain Destroyed 75 | . 75 Melee . | . . Projectile . | . . AOE 75 | . 75 Terrain Rammed . | . . Walls Destroyed . | . . Machines Disabled . | . . Actions | -11 -10 --------- Run | Scr Mat Total 383 | 2 381 Wait 9 | . 9 Move 281 | . 281 Hop . | . . Pick Up 8 | . 8 Fast Attach 4 | . 4 Attach 2 | . 2 Detach . | . . Swap 10 | . 10 Drop 11 | 2 9 Fire 58 | . 58 Melee . | . . Ram . | . . Kick . | . . Crush . | . . Escape Stasis . | . . Rewire . | . . Trap . | . . Miscellaneous . | . . Route ------- -11/Scrapyard -10/Materials (discovered 1 exit: [*Mat]) History --------- Turn | Location | Event 2 | -11/Scrapyard | Discovered new exit (range 0) 2 | -11/Scrapyard | Entered Materials 295 | -10/Materials | Discovered new exit (range 10) 341 | -10/Materials | Build established: Mutant 399 | -10/Materials | Core integrity fell below 50% 545 | -10/Materials | Core integrity fell below 20% 558 | -10/Materials | Destroyed by G-47 Trooper with Particle Gun Last Messages --------------- 00398_ W-16 Scout destroyed. 00399_ K-01 Serf collects debris. 00412_ Acquired Lrg. Storage Unit. 00414_ Dropped Aluminum Leg. 00418_ Dropped Med. Laser. 00436_ Lgt. Ion Engine destroyed. 00438_ U-05 Engineer lays Concrete. 00452_ Critical hit (Burn: +37). 00456_ Assault Rifle destroyed. 00464_ Acquired Med. Laser. 00464_ Critical hit (Burn: +37). 00467_ G-47 Trooper destroyed. 00473_ Acquired Lgt. Nuclear Core. 00474_ Acquired 60 matter. 00478_ Acquired Aluminum Leg. 00483_ G-34 Mercenary suffers critical hit (Burn). 00489_ G-34 Mercenary destroyed. 00495_ Acquired 49 matter. 00523_ Acquired Med. Laser. 00531_ W-16 Scout sends out distress signal. Map ----- +----------------------------------------------------+ | ???????????????????????????### < | | ???????????????????????????# | | ???????????????????????????### = | | ???????????????????????????# % | | ???????????????????????????## [ | | ????????????????????????????# % # | | ????????????????????????????# # | | ????????????????????????????# ! | | ????????????????????????????## | | ?????????????????????????????# | | ????????? ??????????????????# # | | ????????+ ??????????????????#### ## | | ????????# ????????????????????###? | | ????????# ???????????????????????? | | ????????# ##???##+###????????????? | | ????????+ ?? #????????????? | | ????????# ^ #????????????? | | ????????# T """ #????????????? | | ????????# """ ###??????????? | | ????????# ? """ # ???????????? | | ????????# ??? ????????????? | | ????????# ???? ###########??? | | ????????# g####### ## #### | | ????????# t # # # + | | ????????# # # # #### | | ????????# @/ # + """ #??? | | ????????+ # # # """ #??? | | ????????# # # # """ #??? | | ????????### # ## ## """ ! #??? | | ??????????# # ## ## """ #??? | | ??????????# # ## ## #??? | | ??????????# # ## ###########??? | | ??????????# ####### ############## | | ????????###g###???# ! | | ?????#### ##### *% | | ?????#!! ! T | | ????#! == ##### | | ????#! #####????????? | | ????#! #########????????????? | | ????#! ### ###????????????????????? | | ????##!!??# #??????????????????????? | | ?????##???# #??????????????????????? | | ??????????# #??????????????????????? | | ??????????# #??????????????????????? | | ??????????# ???????????????????????? | | ??????????# ???????????????????????? | | ??????????+ ???????????????????????? | | ??????????# ???????????????????????? | | ??????????? ???????????????????????? | | ???????????#???????????????????????? | +----------------------------------------------------+ Best States ------------- Heat Dissipation 25 Energy Generation 14 Energy Capacity 160 Matter Stores 300 Matter Capacity 300 Sight Range 16 Terrain Scan Density 10 Evasion (%) 55 Recoil Reduction 2 Item Schematics ----------------- None Robot Schematics ------------------ None Fabricated ------------ Nothing Alien Tech Used ----------------- None Achievements -------------- None Challenges ------------ None Game ------ Seed SmallCompactRipper Manual? 0 Play Time 00:07:08 Cumulative 393.7 hours Start 2021.10.22 @ 22:44:06 End 2021.10.22 @ 22:47:46 Sessions 1 Manual Loads 0 Difficulty Rogue Special Mode None Game No. 401 Rogue 401 Adventurer 0 Explorer 0 Win Type - Total 7 Types 6/0/0/1/0/0/0/0/0 Lore% 79 Gallery% 91 Achievement% 69 Wizard Run 0 Options --------- ASCII 0 Keyboard 0 Movement Mouse Keybinds 1 Fullscreen 2 Font 24/Smallcaps Map View 76x50 Tactical HUD 1 Map Filters NONE Filters NONE Steam 1 RUN: 69b5eeaa-969d-4cb8-a297-0d5c611bbaf8